fUSD/lending_fUSD_20240602
["ID","MTS","AMOUNT","RATE_DAILY","PERIOD"]
[328419214,1717371074471,-500.0,0.0003168,4]
[328419215,1717371074482,-500.0,0.0003168,4]
[328419216,1717371074494,-573.17,0.0003168,4]
[328419217,1717371074506,-500.0,0.0003168,4]
[328419218,1717371074517,-175.22654928,0.0003168,4]
[328419219,1717371074530,-500.0,0.0003168,4]
[328419220,1717371074540,-634.90290564,0.0003168,4]
[328419221,1717371074552,-500.0,0.0003168,4]
[328419222,1717371074563,-500.0,0.0003168,4]
[328419223,1717371074574,-540.19269005,0.0003168,4]
[328419224,1717371074585,-500.0,0.0003168,4]
[328419225,1717371074596,-500.0,0.0003168,4]
[328419226,1717371074607,-500.0,0.0003168,4]
[328419227,1717371074618,-500.0,0.0003168,4]
[328419228,1717371074629,-500.0,0.0003168,4]
[328419229,1717371074640,-500.0,0.0003168,4]
[328419230,1717371074654,-550.58307268,0.0003168,4]
[328419231,1717371074666,-500.0,0.0003168,4]
[328419232,1717371074677,-500.0,0.0003168,4]
[328419233,1717371074689,-500.0,0.0003168,4]
[328419234,1717371074700,-500.0,0.0003168,4]
[328419235,1717371074711,-500.0,0.0003168,4]
[328419236,1717371074724,-500.0,0.0003168,4]
[328419237,1717371074737,-557.59729114,0.0003168,4]
[328419238,1717371074748,-500.0,0.0003168,4]
[328419239,1717371074759,-150.0,0.0003168,4]
[328419240,1717371074771,-500.0,0.0003168,4]
[328419241,1717371074783,-500.0,0.0003168,4]
[328419242,1717371074797,-500.0,0.0003168,4]
[328419243,1717371074809,-500.0,0.0003168,4]
[328419244,1717371074823,-534.62807881,0.0003168,4]
[328419245,1717371074836,-500.0,0.0003168,4]
[328419246,1717371074849,-500.0,0.0003168,4]
[328419247,1717371074864,-500.0,0.0003168,4]
[328419248,1717371074877,-500.0,0.0003168,4]
[328419249,1717371074890,-500.0,0.0003168,4]
[328419250,1717371074903,-338.44348043,0.0003168,4]
[328419251,1717371074916,-599.18,0.0003168,4]
[328419252,1717371074929,-500.0,0.0003168,4]
[328419253,1717371074942,-500.0,0.0003168,4]
[328419254,1717371074957,-500.0,0.0003168,4]
[328419255,1717371074970,-500.0,0.0003168,4]
[328419256,1717371074983,-500.0,0.0003168,4]
[328419257,1717371074996,-500.0,0.0003168,4]
[328419258,1717371075010,-500.0,0.0003168,4]
[328419259,1717371075022,-315.79729714,0.0003168,4]
[328419260,1717371075037,-500.0,0.0003168,4]
[328419261,1717371075065,-500.0,0.0003168,4]
[328419262,1717371075085,-500.0,0.0003168,4]
[328419263,1717371075105,-500.0,0.0003168,4]
[328419264,1717371075123,-500.0,0.0003168,4]
[328419265,1717371075140,-582.7,0.0003168,4]
[328419266,1717371075157,-500.0,0.0003168,4]
[328419267,1717371075173,-500.0,0.0003168,4]
[328419268,1717371075188,-500.0,0.0003168,4]
[328419269,1717371075203,-500.0,0.0003168,4]
[328419270,1717371075217,-500.0,0.0003168,4]
[328419271,1717371075231,-500.0,0.0003168,4]
[328419272,1717371075246,-500.0,0.0003168,4]
[328419273,1717371075259,-500.0,0.0003168,4]
[328419274,1717371075273,-500.0,0.0003168,4]
[328419275,1717371075286,-500.0,0.0003168,4]
[328419276,1717371075299,-500.0,0.0003168,4]
[328419277,1717371075312,-500.0,0.0003168,4]
[328419278,1717371075326,-322.4055726,0.0003168,4]
[328419279,1717371075339,-500.0,0.0003168,4]
[328419280,1717371075352,-500.0,0.0003168,4]
[328419281,1717371075364,-700.2,0.0003168,4]
[328419282,1717371075378,-500.0,0.0003168,4]
[328419283,1717371075393,-521.80469878,0.0003168,4]
[328419284,1717371075407,-500.0,0.0003168,4]
[328419285,1717371075419,-515.55911935,0.0003168,4]
[328419286,1717371075585,-500.0,0.0003168,4]
[328419287,1717371075601,-500.0,0.0003168,4]
[328419288,1717371075610,-500.0,0.0003168,4]
[328419289,1717371075620,-500.0,0.0003168,4]
[328419290,1717371075629,-500.0,0.0003168,4]
[328419291,1717371075638,-530.69528237,0.0003168,4]
[328419292,1717371075647,-500.0,0.0003168,4]
[328419293,1717371075660,-500.0,0.0003168,4]
[328419294,1717371075670,-500.0,0.0003168,4]
[328419295,1717371075679,-615.25,0.0003168,4]
[328419296,1717371075689,-504.71,0.0003168,4]
[328419297,1717371075699,-500.0,0.0003168,4]
[328419298,1717371075708,-500.0,0.0003168,4]
[328419299,1717371075719,-500.0,0.0003168,4]
[328419300,1717371075730,-500.0,0.0003168,4]
[328419301,1717371075744,-500.0,0.0003168,4]
[328419302,1717371075753,-521.94633276,0.0003168,4]
[328419303,1717371075762,-500.0,0.0003168,4]
[328419304,1717371075772,-500.0,0.0003168,4]
[328419305,1717371075782,-500.0,0.0003168,4]
[328419306,1717371075794,-500.0,0.0003168,4]
[328419307,1717371075805,-597.94,0.0003168,4]
[328419308,1717371075815,-500.0,0.0003168,4]
[328419309,1717371075826,-500.0,0.0003168,4]
[328419310,1717371075836,-500.0,0.0003168,4]
[328419311,1717371075845,-500.0,0.0003168,4]
[328419312,1717371075855,-500.0,0.0003168,4]
[328419313,1717371075866,-500.0,0.0003168,4]
[328419314,1717371075875,-500.0,0.0003168,4]
[328419315,1717371075886,-500.0,0.0003168,4]
[328419316,1717371075895,-500.0,0.0003168,4]
[328419317,1717371075904,-500.0,0.0003168,4]
[328419318,1717371075914,-590.01,0.0003168,4]
[328419319,1717371075923,-500.0,0.0003168,4]
[328419320,1717371075932,-500.0,0.0003168,4]
[328419321,1717371075941,-215.8318781,0.0003168,4]
[328419322,1717371075951,-500.0,0.0003168,4]
[328419323,1717371075960,-338.8204387,0.0003168,4]
[328419324,1717371075970,-159.82804061,0.0003168,4]
[328419325,1717371075980,-500.0,0.0003168,4]
[328419326,1717371075989,-592.45,0.0003168,4]
[328419327,1717371075998,-500.0,0.0003168,4]
[328419328,1717371076007,-500.0,0.0003168,4]
[328419329,1717371076016,-177.22410962,0.0003168,4]
[328419330,1717371076026,-518.07468074,0.0003168,4]
[328419331,1717371076036,-707.92,0.0003168,4]
[328419332,1717371076045,-500.0,0.0003168,4]
[328419333,1717371076054,-500.0,0.0003168,4]
[328419334,1717371076064,-520.83863007,0.0003168,4]
[328419335,1717371076073,-500.0,0.0003168,4]
[328419336,1717371076083,-507.45992798,0.0003168,4]
[328419337,1717371076093,-161.2062963,0.0003168,4]
[328419338,1717371076102,-605.96,0.0003168,4]
[328419339,1717371076111,-518.70862021,0.0003168,4]
[328419340,1717371076121,-539.36,0.0003168,4]
[328419341,1717371076130,-515.7492063,0.0003168,4]
[328419342,1717371076140,-500.0,0.0003168,4]
[328419343,1717371076149,-500.0,0.0003168,4]
[328419344,1717371076160,-500.0,0.0003168,4]
[328419345,1717371076169,-500.0,0.0003168,4]
[328419346,1717371076178,-518.06719037,0.0003168,4]
[328419347,1717371076188,-500.0,0.0003168,4]
[328419348,1717371076197,-500.0,0.0003168,4]
[328419349,1717371076206,-500.0,0.0003168,4]
[328419350,1717371076215,-522.80492909,0.0003168,4]
[328419351,1717371076225,-500.0,0.0003168,4]
[328419352,1717371076234,-500.0,0.0003168,4]
[328419353,1717371076243,-610.74972477,0.0003168,4]
[328419354,1717371076252,-500.0,0.0003168,4]
[328419355,1717371076262,-500.0,0.0003168,4]
[328419356,1717371076272,-500.0,0.0003168,4]
[328419357,1717371076282,-500.0,0.0003168,4]
[328419358,1717371076292,-500.0,0.0003168,4]
[328419359,1717371076302,-500.0,0.0003168,4]
[328419360,1717371076313,-500.0,0.0003168,4]
[328419361,1717371076322,-500.0,0.0003168,4]
[328419362,1717371076333,-500.0,0.0003168,4]
[328419363,1717371076343,-500.0,0.0003168,4]
[328419364,1717371076355,-504.73284334,0.0003168,4]
[328419365,1717371076365,-500.0,0.0003168,4]
[328419366,1717371076376,-523.47934282,0.0003168,4]
[328419367,1717371076387,-530.42535643,0.0003168,4]
[328419368,1717371076397,-500.0,0.0003168,4]
[328419369,1717371076407,-500.0,0.0003168,4]
[328419370,1717371076416,-500.0,0.0003168,4]
[328419371,1717371076426,-500.0,0.0003168,4]
[328419372,1717371076435,-356.68,0.0003168,4]
[328419373,1717371076445,-500.0,0.0003168,4]
[328419374,1717371076454,-591.94335243,0.0003168,4]
[328419375,1717371076463,-521.83270168,0.0003168,4]
[328419376,1717371076472,-519.72414626,0.0003168,4]
[328419377,1717371076482,-500.0,0.0003168,4]
[328419378,1717371076491,-519.14309658,0.0003168,4]
[328419379,1717371076500,-500.0,0.0003168,4]
[328419380,1717371076510,-527.6512253,0.0003168,4]
[328419381,1717371076521,-500.0,0.0003168,4]
[328419382,1717371076532,-558.02371703,0.0003168,4]
[328419383,1717371076542,-500.0,0.0003168,4]
[328419384,1717371076552,-500.0,0.0003168,4]
[328419385,1717371076563,-500.0,0.0003168,4]
[328419386,1717371076573,-500.0,0.0003168,4]
[328419387,1717371076582,-500.0,0.0003168,4]
[328419388,1717371076593,-500.0,0.0003168,4]
[328419389,1717371076602,-500.0,0.0003168,4]
[328419390,1717371076612,-303.5272591,0.0003168,4]
[328419391,1717371076622,-500.0,0.0003168,4]
[328419392,1717371076632,-512.80517389,0.0003168,4]
[328419393,1717371076642,-500.0,0.0003168,4]
[328419394,1717371076654,-532.32142163,0.0003168,4]
[328419395,1717371076665,-500.0,0.0003168,4]
[328419396,1717371076675,-500.0,0.0003168,4]
[328419397,1717371076688,-500.0,0.0003168,4]
[328419398,1717371076700,-500.0,0.0003168,4]
[328419399,1717371076710,-500.0,0.0003168,4]
[328419400,1717371076720,-500.0,0.0003168,4]
[328419401,1717371076730,-529.04316119,0.0003168,4]
[328419402,1717371076740,-500.0,0.0003168,4]
[328419403,1717371076750,-500.0,0.0003168,4]
[328419404,1717371076760,-500.0,0.0003168,4]
[328419405,1717371076770,-500.0,0.0003168,4]
[328419406,1717371076780,-500.0,0.0003168,4]
[328419407,1717371076790,-331.41539032,0.0003168,4]
[328419408,1717371076799,-500.0,0.0003168,4]
[328419409,1717371076809,-500.0,0.0003168,4]
[328419410,1717371076819,-500.0,0.0003168,4]
[328419411,1717371076828,-500.0,0.0003168,4]
[328419412,1717371076838,-500.0,0.0003168,4]
[328419413,1717371076848,-500.0,0.0003168,4]
[328419414,1717371076857,-500.0,0.0003168,4]
[328419415,1717371076867,-500.0,0.0003168,4]
[328419416,1717371076876,-500.0,0.0003168,4]
[328419417,1717371076886,-500.0,0.0003168,4]
[328419418,1717371076895,-500.0,0.0003168,4]
[328419419,1717371076904,-500.0,0.0003168,4]
[328419420,1717371076914,-522.11057009,0.0003168,4]
[328419421,1717371076923,-500.0,0.0003168,4]
[328419422,1717371076932,-500.0,0.0003168,4]
[328419423,1717371076941,-500.0,0.0003168,4]
[328419424,1717371076951,-500.0,0.0003168,4]
[328419425,1717371076960,-8095.33,0.0003168,4]
[328419426,1717371076969,-500.0,0.0003168,4]
[328419427,1717371076978,-500.0,0.0003168,4]
[328419428,1717371076988,-500.0,0.0003168,4]
[328419429,1717371076997,-542.327792,0.0003168,4]
[328419430,1717371077006,-500.0,0.0003168,4]
[328419431,1717371077017,-500.0,0.0003168,4]
[328419432,1717371077026,-1817.32,0.0003168,4]
[328419433,1717371077035,-500.0,0.0003168,4]
[328419434,1717371077044,-535.10652029,0.0003168,4]
[328419435,1717371077054,-1662.32,0.0003168,4]
[328419436,1717371077063,-2228.05,0.0003168,4]
[328419437,1717371077074,-500.0,0.0003168,4]
[328419438,1717371077083,-500.0,0.0003168,4]
[328419439,1717371077093,-521.31026691,0.0003168,4]
[328419440,1717371077102,-500.0,0.0003168,4]
[328419441,1717371077111,-500.0,0.0003168,4]
[328419442,1717371077120,-500.0,0.0003168,4]
[328419443,1717371077130,-500.0,0.0003168,4]
[328419444,1717371077139,-500.0,0.0003168,4]
[328419445,1717371077149,-555.54,0.0003168,4]
[328419446,1717371077159,-504.46040191,0.0003168,4]
[328419447,1717371077168,-2477.72,0.0003168,4]
[328419448,1717371077178,-500.0,0.0003168,4]
[328419449,1717371077187,-500.0,0.0003168,4]
[328419450,1717371077197,-500.0,0.0003168,4]
[328419451,1717371077206,-516.53836332,0.0003168,4]
[328419452,1717371077216,-10414.42,0.0003168,4]
[328419453,1717371077226,-1251.87,0.0003168,4]
[328419454,1717371077235,-225.48626183,0.0003168,4]
[328419455,1717371077244,-500.0,0.0003168,4]
[328419456,1717371077254,-500.0,0.0003168,4]
[328419457,1717371077263,-500.0,0.0003168,4]
[328419458,1717371077272,-500.0,0.0003168,4]
[328419459,1717371077282,-1307.86,0.0003168,4]
[328419460,1717371077291,-505.0,0.0003168,4]
[328419461,1717371077300,-500.0,0.0003168,4]
[328419462,1717371077310,-653.28,0.0003168,4]
[328419463,1717371077319,-500.0,0.0003168,4]
[328419464,1717371077328,-500.0,0.0003168,4]
[328419465,1717371077338,-507.00788768,0.0003168,4]
[328419466,1717371077347,-500.0,0.0003168,4]
[328419467,1717371077357,-500.0,0.0003168,4]
[328419468,1717371077366,-500.0,0.0003168,4]
[328419469,1717371077375,-1861.34,0.0003168,4]
[328419470,1717371077384,-500.0,0.0003168,4]
[328419471,1717371077394,-524.58061942,0.0003168,4]
[328419472,1717371077403,-500.0,0.0003168,4]
[328419473,1717371077412,-500.0,0.0003168,4]
[328419474,1717371077421,-500.0,0.0003168,4]
[328419475,1717371077431,-500.0,0.0003168,4]
[328419476,1717371077440,-3510.65,0.0003168,4]
[328419477,1717371077449,-500.0,0.0003168,4]
[328419478,1717371077458,-206.79205888,0.0003168,4]
[328419479,1717371077467,-500.0,0.0003168,4]
[328419480,1717371077476,-500.0,0.0003168,4]
[328419481,1717371077486,-500.0,0.0003168,4]
[328419482,1717371077495,-1153.56,0.0003168,4]
[328419483,1717371077505,-500.0,0.0003168,4]
[328419484,1717371077515,-500.0,0.0003168,4]
[328419485,1717371077525,-606.11,0.0003168,4]
[328419486,1717371077535,-500.0,0.0003168,4]
[328419487,1717371077544,-521.41113144,0.0003168,4]
[328419488,1717371077553,-500.0,0.0003168,4]
[328419489,1717371077562,-743.26,0.0003168,4]
[328419490,1717371077572,-500.0,0.0003168,4]
[328419491,1717371077581,-505.68774193,0.0003168,4]
[328419492,1717371077590,-500.0,0.0003168,4]
[328419493,1717371077599,-500.0,0.0003168,4]
[328419494,1717371077608,-870.16,0.0003168,4]
[328419495,1717371077618,-829.62,0.0003168,4]
[328419496,1717371077627,-500.0,0.0003168,4]
[328419497,1717371077636,-500.0,0.0003168,4]
[328419498,1717371077645,-1219.6,0.0003168,4]
[328419499,1717371077658,-500.0,0.0003168,4]
[328419500,1717371077667,-500.0,0.0003168,4]
[328419501,1717371077676,-500.0,0.0003168,4]
[328419502,1717371077685,-500.0,0.0003168,4]
[328419503,1717371077695,-500.0,0.0003168,4]
[328419504,1717371077704,-500.0,0.0003168,4]
[328419505,1717371077713,-500.0,0.0003168,4]
[328419506,1717371077723,-500.0,0.0003168,4]
[328419507,1717371077735,-500.0,0.0003168,4]
[328419508,1717371077745,-500.0,0.0003168,4]
[328419509,1717371077754,-500.0,0.0003168,4]
[328419510,1717371077763,-500.0,0.0003168,4]
[328419511,1717371077773,-500.0,0.0003168,4]
[328419512,1717371077783,-500.0,0.0003168,4]
[328419513,1717371077792,-500.0,0.0003168,4]
[328419514,1717371077801,-500.0,0.0003168,4]
[328419515,1717371077810,-500.0,0.0003168,4]
[328419516,1717371077820,-513.99,0.0003168,4]
[328419517,1717371077830,-500.0,0.0003168,4]
[328419518,1717371077839,-303.33606883,0.0003168,4]
[328419519,1717371077848,-500.0,0.0003168,4]
[328419520,1717371077857,-500.0,0.0003168,4]
[328419521,1717371077866,-619.96721909,0.0003168,4]
[328419522,1717371077875,-500.0,0.0003168,4]
[328419523,1717371077884,-588.98,0.0003168,4]
[328419524,1717371077894,-500.0,0.0003168,4]
[328419525,1717371077904,-500.0,0.0003168,4]
[328419526,1717371077913,-150.0,0.00031684,7]
[328419527,1717371077923,-150.0,0.00031698,7]
[328419528,1717371077932,-18126.6274209,0.000317,2]
[328419529,1717371077941,-1040.0,0.000317,6]
[328419530,1717371077950,-150.80632903,0.000317,7]
[328419531,1717371077959,-1000.0,0.000317,11]
[328419532,1717371077969,-167.17887737,0.00031701,7]
[328419533,1717371077978,-150.0,0.00031711,7]
[328419534,1717371077987,-155.30149408,0.00031718,7]
[328419535,1717371077997,-156.77918622,0.00031719,7]
[328419536,1717371078007,-152.15130497,0.00031731,7]
[328419537,1717371078017,-150.0,0.00031755,7]
[328419538,1717371078026,-150.0,0.00031766,7]
[328419539,1717371078035,-150.0,0.00031773,7]
[328419540,1717371078044,-276.57701684,0.00031773,2]
[328419541,1717371078053,-167.17887737,0.00031775,7]
[328419542,1717371078062,-150.0,0.00031787,7]
[328419543,1717371078072,-50092.0,0.00031788,5]
[328419544,1717371078082,-1345.0,0.00031788,5]
[328419545,1717371078092,-176.926326,0.00031792,7]
[328419546,1717371078102,-150.0,0.00031798,7]
[328419547,1717371078112,-166.03192874,0.00031799,7]
[328419548,1717371078121,-152.0,0.000318,3]
[328419549,1717371078131,-1000.0,0.000318,11]
[328419550,1717371078140,-186.64,0.00031818,2]
[328419551,1717371078150,-3753.36893321,0.0003182,3]
[328419552,1717371078160,-150.0,0.00031826,7]
[328419553,1717371078169,-215.93,0.00031828,2]
[328419554,1717371078178,-150.0,0.00031835,7]
[328419555,1717371078187,-19633.96026482,0.00031839,15]
[328419556,1717371078196,-5881.30390149,0.00031839,15]
[328419557,1717371078206,-166.3188502,0.00031843,2]
[328419558,1717371078215,-500.0,0.00031864,4]
[328419559,1717371078224,-500.0,0.00031864,4]
[328419560,1717371078233,-500.0,0.00031864,4]
[328419561,1717371078243,-500.0,0.00031864,4]
[328419562,1717371078252,-617.47,0.00031864,4]
[328419563,1717371078262,-500.0,0.00031864,4]
[328419564,1717371078271,-500.0,0.00031864,4]
[328419565,1717371078280,-705.6,0.00031864,4]
[328419566,1717371078289,-517.48,0.00031864,4]
[328419567,1717371078298,-536.81785024,0.00031864,4]
[328419568,1717371078307,-607.53,0.00031864,4]
[328419569,1717371078316,-500.0,0.00031864,4]
[328419570,1717371078326,-1255.03,0.00031864,4]
[328419571,1717371078335,-500.0,0.00031864,4]
[328419572,1717371078345,-574.85,0.00031864,4]
[328419573,1717371078354,-500.0,0.00031864,4]
[328419574,1717371078363,-500.0,0.00031864,4]
[328419575,1717371078372,-500.0,0.00031864,4]
[328419576,1717371078382,-500.0,0.00031864,4]
[328419577,1717371078391,-500.0,0.00031864,4]
[328419578,1717371078400,-500.0,0.00031864,4]
[328419579,1717371078410,-500.0,0.00031864,4]
[328419580,1717371078419,-570.33,0.00031864,4]
[328419581,1717371078428,-500.0,0.00031864,4]
[328419582,1717371078437,-551.69,0.00031864,4]
[328419583,1717371078446,-661.77,0.00031864,4]
[328419584,1717371078455,-500.0,0.00031864,4]
[328419585,1717371078466,-936.31,0.00031864,4]
[328419586,1717371078475,-522.4,0.00031864,4]
[328419587,1717371078485,-500.0,0.00031864,4]
[328419588,1717371078496,-500.0,0.00031864,4]
[328419589,1717371078506,-500.0,0.00031864,4]
[328419590,1717371078516,-1102.97,0.00031864,4]
[328419591,1717371078525,-831.18,0.00031864,4]
[328419592,1717371078535,-638.36,0.00031864,4]
[328419593,1717371078545,-820.06,0.00031864,4]
[328419594,1717371078555,-520.32,0.00031864,4]
[328419595,1717371078565,-1014.06,0.00031864,4]
[328419596,1717371078574,-500.0,0.00031864,4]
[328419597,1717371078583,-500.0,0.00031864,4]
[328419598,1717371078593,-567.86,0.00031864,4]
[328419599,1717371078603,-500.0,0.00031864,4]
[328419600,1717371078612,-592.44,0.00031864,4]
[328419601,1717371078621,-500.0,0.00031864,4]
[328419602,1717371078631,-500.0,0.00031864,4]
[328419603,1717371078640,-516.74,0.00031864,4]
[328419604,1717371078650,-381.92,0.00031864,4]
[328419605,1717371078662,-720.42,0.00031864,4]
[328419606,1717371078671,-500.0,0.00031864,4]
[328419607,1717371078680,-675.63,0.00031864,4]
[328419608,1717371078690,-1147.72,0.00031864,4]
[328419609,1717371078699,-523.0,0.00031864,4]
[328419610,1717371078708,-500.0,0.00031864,4]
[328419611,1717371078718,-500.0,0.00031864,4]
[328419612,1717371078889,-715.6,0.00031864,4]
[328419613,1717371078899,-653.66,0.00031864,4]
[328419614,1717371078908,-871.38,0.00031864,4]
[328419615,1717371078918,-554.83,0.00031864,4]
[328419616,1717371078927,-684.32,0.00031864,4]
[328419617,1717371078936,-500.0,0.00031864,4]
[328419618,1717371078946,-654.04,0.00031864,4]
[328419619,1717371078955,-500.0,0.00031864,4]
[328419620,1717371078965,-697.57,0.00031864,4]
[328419621,1717371078976,-500.0,0.00031864,4]
[328419622,1717371078985,-500.0,0.00031864,4]
[328419623,1717371078996,-500.0,0.00031864,4]
[328419624,1717371079005,-789.05,0.00031864,4]
[328419625,1717371079015,-760.07,0.00031864,4]
[328419626,1717371079026,-500.0,0.00031864,4]
[328419627,1717371079035,-1212.31,0.00031864,4]
[328419628,1717371079046,-772.24,0.00031864,4]
[328419629,1717371079055,-500.0,0.00031864,4]
[328419630,1717371079064,-903.33,0.00031864,4]
[328419631,1717371079074,-1037.02,0.00031864,4]
[328419632,1717371079083,-904.38,0.00031864,4]
[328419633,1717371079093,-200.0,0.00031872,2]
[328419634,1717371079104,-200.0,0.00031872,2]
[328419635,1717371079114,-200.0,0.00031872,2]
[328419636,1717371079123,-200.0,0.00031872,2]
[328419637,1717371079134,-500.0,0.0003188,4]
[328419638,1717371079144,-500.0,0.0003188,4]
[328419639,1717371079154,-1001.15,0.0003188,4]
[328419640,1717371079163,-531.24,0.0003188,4]
[328419641,1717371079173,-500.0,0.0003188,4]
[328419642,1717371079183,-2925.21,0.0003188,4]
[328419643,1717371079193,-1385.52,0.0003188,4]
[328419644,1717371079203,-5956.43,0.0003188,4]
[328419645,1717371079215,-13746.73,0.0003188,4]
[328419646,1717371079226,-692.01,0.0003188,4]
[328419647,1717371079236,-2419.36,0.0003188,4]
[328419648,1717371079247,-12780.6,0.0003188,4]
[328419649,1717371079256,-737.12,0.0003188,4]
[328419650,1717371079266,-500.0,0.0003188,4]
[328419651,1717371079277,-500.0,0.0003188,4]
[328419652,1717371079288,-500.0,0.00031881,4]
[328419653,1717371079298,-371.07651232,0.00031881,4]
[328419654,1717371079310,-508.75424554,0.00031881,4]
[328419655,1717371079320,-500.0,0.00031881,4]
[328419656,1717371079332,-513.42873081,0.00031881,4]
[328419657,1717371079344,-500.0,0.00031881,4]
[328419658,1717371079354,-500.0,0.00031881,4]
[328419659,1717371079366,-518.52361413,0.00031881,4]
[328419660,1717371079377,-500.0,0.00031881,4]
[328419661,1717371079387,-500.0,0.00031881,4]
[328419662,1717371079397,-500.0,0.00031881,4]
[328419663,1717371079407,-500.0,0.00031881,4]
[328419664,1717371079416,-500.0,0.00031881,4]
[328419665,1717371079425,-534.2664719,0.00031881,4]
[328419666,1717371079435,-407.24381435,0.00031881,4]
[328419667,1717371079444,-500.0,0.00031881,4]
[328419668,1717371079454,-528.14186374,0.00031881,4]
[328419669,1717371079464,-500.0,0.00031881,4]
[328419670,1717371079473,-500.0,0.00031881,4]
[328419671,1717371079483,-500.0,0.00031881,4]
[328419672,1717371079494,-500.0,0.00031881,4]
[328419673,1717371079504,-500.0,0.00031881,4]
[328419674,1717371079513,-500.0,0.00031881,4]
[328419675,1717371079522,-264.71092333,0.00031881,4]
[328419676,1717371079532,-976.87,0.00031881,4]
[328419677,1717371079542,-628.6450217,0.00031881,4]
[328419678,1717371079553,-985.6,0.00031881,4]
[328419679,1717371079562,-500.0,0.00031881,4]
[328419680,1717371079572,-500.0,0.00031881,4]
[328419681,1717371079581,-500.0,0.00031881,4]
[328419682,1717371079590,-573.23,0.00031881,4]
[328419683,1717371079600,-250.0,0.00031881,4]
[328419684,1717371079612,-500.0,0.00031881,4]
[328419685,1717371079623,-500.0,0.00031881,4]
[328419686,1717371079632,-500.0,0.00031881,2]
[328419687,1717371079642,-516.16,0.00031881,4]
[328419688,1717371079653,-500.0,0.00031881,4]
[328419689,1717371079664,-500.0,0.00031881,4]
[328419690,1717371079673,-501.76,0.00031881,4]
[328419691,1717371079683,-533.17743379,0.00031881,4]
[328419692,1717371079694,-500.0,0.00031881,4]
[328419693,1717371079704,-585.1,0.00031881,4]
[328419694,1717371079714,-500.0,0.00031881,4]
[328419695,1717371079725,-500.0,0.00031881,4]
[328419696,1717371079735,-500.0,0.00031881,4]
[328419697,1717371079746,-500.0,0.00031881,4]
[328419698,1717371079757,-500.0,0.00031881,4]
[328419699,1717371079766,-500.0,0.00031881,4]
[328419700,1717371079776,-500.0,0.00031881,4]
[328419701,1717371079786,-500.0,0.00031881,4]
[328419702,1717371079797,-514.03184754,0.00031881,4]
[328419703,1717371079808,-606.90715103,0.00031881,4]
[328419704,1717371079817,-159.8205744,0.00031881,4]
[328419705,1717371079827,-198.51521352,0.00031881,4]
[328419706,1717371079836,-542.52807779,0.00031881,4]
[328419707,1717371079846,-500.0,0.00031881,4]
[328419708,1717371079855,-500.0,0.00031881,4]
[328419709,1717371079864,-555.06091402,0.00031881,4]
[328419710,1717371079874,-514.04842987,0.00031881,4]
[328419711,1717371079883,-542.33446799,0.00031881,4]
[328419712,1717371079892,-500.0,0.00031881,4]
[328419713,1717371079901,-565.05,0.00031881,4]